bitfinex/quotes_ETHUSD_20220123
["timestamp","ask_amount","ask_price","bid_price","bid_amount"]
[1642969707690,0.23388592,2413.4,2413.2,0.95690551]
[1642969707891,1.31148592,2413.4,2412.9,3.8394]
[1642969708090,1.31148592,2413.4,2412.5,0.01263067]
[1642969708694,1.31148592,2413.4,2412.5,1.01263067]
[1642969709592,1.31148592,2413.4,2413.2,0.94461249]
[1642969710834,0.04081,2413.3,2412.6,2.30498317]
[1642969711034,0.27469592,2413.3,2412.6,1.1881]
[1642969711433,0.27469592,2413.3,2412.4,3.8585]
[1642969712133,0.27469592,2413.3,2413.2,1.02593203]
[1642969712334,0.23388592,2413.3,2413.2,1.02593203]
[1642969712533,0.23388592,2413.3,2412.4,3.8585]
[1642969713541,0.27469592,2413.6,2413.3,0.00114443]
[1642969715590,0.27469592,2413.6,2413.5,0.99267098]
[1642969716193,0.27469592,2413.6,2413.5,0.99168222]
[1642969716399,0.27469592,2413.6,2413.3,0.00114443]
[1642969716593,1.16339592,2413.6,2413.3,0.00114443]
[1642969717294,0.04081,2413.4,2413.3,0.00114443]
[1642969717495,0.04081,2413.4,2413.3,0.97163186]
[1642969717696,0.04081,2413.4,2413.3,0.00114443]
[1642969718742,1.26879318,2413.4,2413.3,0.00114443]
[1642969718944,0.95854773,2413.4,2413.3,4.443e-05]
[1642969719142,0.95854773,2413.4,2412.0,3.8746]
[1642969719143,0.23388592,2413.2,2412.0,3.8746]
[1642969719340,0.23388592,2413.0,2412.0,3.8746]
[1642969719540,1.37378592,2413.0,2412.0,3.8746]
[1642969719740,0.27469592,2412.9,2411.9,3.6926]
[1642969720144,0.23388592,2412.3,2412.1,1.04895157]
[1642969720346,1.01848592,2412.3,2411.9,3.6926]
[1642969720543,1.01848592,2412.3,2411.7,2.69883213]
[1642969720742,1.01848592,2412.3,2411.7,0.0127763]
[1642969721347,0.23388592,2412.2,2411.3,1.205]
[1642969721994,0.23388592,2412.2,2411.3,2.39585167]
[1642969722395,0.04081,2412.1,2411.5,0.91015522]
[1642969722595,0.94336683,2411.9,2411.5,0.91015522]
[1642969722794,0.23388592,2411.9,2411.7,1.44616645]
[1642969724810,0.23388592,2411.9,2411.5,0.91015522]
[1642969725676,0.23388592,2411.9,2411.3,1.205]
[1642969725677,0.23388592,2411.6,2411.3,1.205]
[1642969725863,0.23388592,2411.6,2411.2,3.6249]
[1642969726065,0.23388592,2411.6,2411.4,0.04035807]
[1642969726465,0.23388592,2411.6,2411.1,0.04206334]
[1642969727165,0.23388592,2411.6,2411.4,0.94330225]
[1642969727365,0.23388592,2411.6,2411.1,0.04206334]
[1642969728067,0.23388592,2411.6,2410.9,0.04320018]
[1642969728370,0.97696186,2411.3,2411.0,1.05747948]
[1642969728572,0.23388592,2411.2,2410.9,0.04320018]
[1642969728767,0.23388592,2411.2,2411.1,0.04206334]
[1642969728968,0.27469592,2411.2,2410.8,0.04376861]
[1642969729267,0.27469592,2411.2,2410.7,0.04433703]
[1642969731095,0.27469592,2411.2,2410.8,0.90340535]
[1642969731497,0.27469592,2411.2,2410.9,0.04320018]
[1642969732103,0.27469592,2411.2,2410.7,0.04433703]
[1642969732104,0.04081,2411.0,2410.7,0.04433703]
[1642969732298,0.04081,2411.1,2410.7,0.04433703]
[1642969732501,0.23388592,2411.0,2410.7,0.04433703]
[1642969732800,0.34081,2411.1,2410.2,0.04717915]
[1642969732801,5.45103532,2410.8,2410.2,0.04717915]
[1642969733000,0.23388592,2410.3,2410.2,0.04717915]
[1642969733246,3.0,2410.2,2409.5,0.166099]
[1642969733448,3.17489412,2410.1,2409.5,0.166099]
[1642969733647,1.87169592,2410.1,2409.5,0.166099]
[1642969733840,0.23388592,2410.0,2409.5,0.166099]
[1642969734043,0.23388592,2410.0,2409.7,1.03304268]
[1642969734044,0.597,2409.9,2409.7,1.03304268]
[1642969734240,0.23388592,2409.8,2409.7,1.03304268]
[1642969734843,0.597,2410.8,2410.6,1.48209811]
[1642969735044,0.597,2411.1,2410.6,1.48209811]
[1642969735244,0.04081,2411.3,2411.0,2.53219775]
[1642969735449,0.597,2411.4,2411.0,2.31619775]
[1642969735644,0.04081,2411.6,2411.0,2.31619775]
[1642969735941,0.597,2411.5,2410.6,0.01229956]
[1642969736140,0.04081,2411.4,2410.0,9.375]
[1642969736345,0.597,2411.3,2410.0,9.375]
[1642969736540,0.597,2411.3,2409.9,3.6262]
[1642969736541,0.01275103,2411.1,2409.9,3.6262]
[1642969736741,0.01275103,2411.1,2409.8,3.8081]
[1642969736742,0.63781,2411.0,2409.8,5.25616292]
[1642969736990,1.10865131,2410.2,2409.9,1.12353249]
[1642969737195,1.10865131,2410.2,2409.8,3.8081]
[1642969737390,1.10865131,2410.2,2409.6,0.01222939]
[1642969737588,1.10865131,2410.2,2408.9,3.9985]
[1642969737789,1.14946131,2410.2,2409.1,0.01221361]
[1642969737989,1.44946131,2410.2,2409.1,0.01221361]
[1642969738198,1.74946131,2410.2,2409.9,0.99144791]
[1642969738398,0.64081,2410.2,2409.9,0.99144791]
[1642969738594,0.63781,2410.6,2409.9,0.99144791]
[1642969738997,0.93781,2410.6,2409.7,1.30984293]
[1642969739397,3.59985558,2410.6,2409.7,1.30984293]
[1642969739602,3.59985558,2410.6,2409.1,1.01221361]
[1642969739603,1.0,2410.5,2409.1,0.01221361]
[1642969739805,3.91491578,2410.4,2409.1,0.01221361]
[1642969739997,0.91016038,2409.6,2409.3,1.08702178]
[1642969740198,1.71436038,2409.6,2408.9,3.9985]
[1642969740401,0.04081,2409.4,2408.9,3.9985]
[1642969741040,0.85734792,2409.0,2408.9,3.9985]
[1642969741240,1.1749,2409.0,2408.9,3.9985]
[1642969741439,1.1749,2409.0,2408.5,0.01252907]
[1642969741640,1.1749,2409.0,2408.4,1.42079663]
[1642969742450,1.1749,2409.0,2408.6,1.16372801]
[1642969742646,1.1749,2409.0,2408.4,1.42079663]
[1642969743646,2.21523381,2410.0,2408.7,1.09619563]
[1642969743647,0.63781,2409.6,2408.7,1.09619563]
[1642969744498,0.93781,2409.6,2408.7,1.09619563]
[1642969744697,2.65930257,2409.5,2408.5,1.35229891]
[1642969744896,2.65930257,2409.5,2408.3,5.1352]
[1642969744897,1.04081,2409.4,2408.3,5.1352]
[1642969745103,3.11061658,2409.3,2408.3,1.2391]
[1642969745297,0.63781,2409.2,2408.2,6.59600643]
[1642969745497,3.19115118,2409.1,2408.2,6.59600643]
[1642969745700,0.597,2409.0,2408.2,6.59600643]
[1642969745899,2.96961256,2408.9,2408.2,6.59600643]
[1642969746096,1.07231702,2408.3,2408.2,6.59600643]
[1642969746302,1.85991702,2408.3,2408.2,6.59600643]
[1642969746498,1.90072702,2408.3,2408.2,6.59600643]
[1642969746709,0.2565,2408.4,2408.3,1.86825026]
[1642969746904,1.1328,2408.4,2408.3,1.86825026]
[1642969747102,1.1328,2408.4,2408.2,6.59600643]
[1642969747103,6.05,2408.3,2408.2,6.59600643]
[1642969747302,6.05,2408.3,2408.2,2.9853432]
[1642969747303,6.647,2408.3,2408.2,2.9853432]
[1642969747500,1.597,2408.3,2408.2,2.9853432]
[1642969747708,2.61439574,2408.3,2408.2,2.9853432]
[1642969748167,2.61439574,2408.3,2406.8,0.01263412]
[1642969748168,7.65,2408.2,2406.8,0.01263412]
[1642969748374,9.10377,2408.1,2406.4,3.91301983]
[1642969748572,1.0,2408.0,2406.4,3.91301983]
[1642969748775,0.597,2407.9,2406.4,3.91301983]
[1642969748979,0.597,2407.9,2405.8,0.01236583]
[1642969748980,7.467,2407.4,2405.8,0.01236583]
[1642969749175,7.467,2407.4,2404.9,0.01200819]
[1642969749176,0.01204156,2406.5,2404.9,0.01200819]
[1642969749373,0.01204156,2406.5,2404.3,12.94873568]
[1642969749374,7.47926228,2406.2,2404.3,3.8021]
[1642969749573,7.467,2405.9,2404.3,3.8021]
[1642969749777,7.467,2405.9,2403.6,11.1083]
[1642969749778,0.01213886,2405.7,2403.6,7.43]
[1642969749974,0.01213886,2405.7,2403.5,3.8919]
[1642969749975,7.467,2405.3,2403.5,3.8919]
[1642969750174,1.06156904,2404.2,2403.5,3.8919]
[1642969750378,2.27796904,2404.2,2403.7,1.3608689]
[1642969750571,2.27796904,2404.2,2403.3,0.01234823]
[1642969750774,0.597,2404.6,2403.3,0.21940823]
[1642969750972,0.597,2405.2,2403.8,0.0121314]
[1642969751172,0.597,2405.2,2403.8,0.2191914]
[1642969751373,0.597,2405.4,2404.5,0.01209568]
[1642969751573,0.597,2405.4,2404.8,1.34760584]
[1642969751776,0.97999093,2405.2,2404.9,1.0032628]
[1642969751994,0.97999093,2405.2,2404.8,1.34760584]
[1642969751995,0.597,2405.7,2404.8,1.34760584]
[1642969752594,0.597,2405.7,2405.2,1.28171189]
[1642969752796,1.13819997,2406.0,2405.6,1.39589948]
[1642969752797,0.13819997,2406.0,2405.6,1.39589948]
[1642969753001,0.13819997,2406.0,2404.5,0.21915568]
[1642969753002,0.13819997,2406.0,2405.4,0.96653811]
[1642969753792,0.08819997,2406.0,2405.4,0.96653811]
[1642969753993,0.08819997,2406.0,2405.6,1.53366063]
[1642969754396,0.166,2406.4,2405.6,1.53366063]
[1642969754598,0.597,2406.6,2406.0,1.14945052]
[1642969755193,0.83097559,2406.4,2406.0,2.3027584]
[1642969756236,0.597,2406.6,2406.0,2.3027584]
[1642969756637,0.1661,2406.5,2405.3,0.04999999]
[1642969756843,0.597,2406.4,2405.3,0.04999999]
[1642969757040,0.597,2406.4,2404.6,1.1661]
[1642969757041,10.9580846,2406.3,2404.5,3.6006]
[1642969757244,7.467,2406.0,2404.5,3.6006]
[1642969757442,7.467,2405.7,2404.3,1.2466]
[1642969757738,0.82486036,2405.1,2404.2,3.8103]
[1642969757938,0.597,2405.0,2404.1,3.884]
[1642969758146,0.597,2405.0,2404.0,7.43]
[1642969758345,0.597,2405.0,2403.7,0.04999999]
[1642969758543,0.1661,2404.9,2403.7,0.04999999]
[1642969758743,0.597,2404.8,2403.9,1.4570372]
[1642969758942,0.166,2404.7,2404.3,1.49290231]
[1642969759144,0.597,2404.7,2404.3,1.49290231]
[1642969759415,0.597,2405.0,2404.7,1.34001235]
[1642969759598,10.99835,2406.7,2405.3,1.38150279]
[1642969759599,0.597,2405.4,2405.3,1.38150279]
[1642969759801,0.597,2405.7,2405.5,1.16133429]
[1642969760197,0.597,2405.7,2405.3,1.38150279]
[1642969760595,0.597,2405.7,2404.7,0.01249618]
[1642969760596,0.547,2405.7,2404.7,0.01249618]
[1642969760804,0.547,2405.7,2403.8,0.597]
[1642969760805,0.1651,2405.6,2404.4,0.3]
[1642969760997,0.597,2405.6,2404.4,1.6]
[1642969761196,0.25319997,2405.9,2404.7,0.01286052]
[1642969761197,0.68519997,2405.9,2404.7,0.01286052]
[1642969761399,0.08819997,2405.9,2404.7,0.01286052]
[1642969761596,0.08819997,2405.9,2405.6,1.31913298]
[1642969761800,0.08819997,2405.9,2405.6,1.26913298]
[1642969762196,0.99940765,2405.9,2404.7,0.01286052]
[1642969762398,0.99940765,2405.9,2404.5,0.20706]
[1642969762597,0.99940765,2405.9,2404.3,1.0]
[1642969762598,0.1663,2405.8,2404.3,1.0]
[1642969762999,0.1663,2405.8,2404.3,1.3]
[1642969763242,0.1663,2405.8,2405.3,0.91013077]
[1642969763843,0.1663,2405.8,2405.0,1.21509011]
[1642969764044,0.1663,2405.8,2404.3,1.0]
[1642969764542,0.1663,2405.8,2404.3,0.20706]
[1642969764842,0.1663,2405.8,2404.1,2.40406]
[1642969765044,1.16194661,2405.2,2404.1,2.40406]
[1642969765245,1.16194661,2405.2,2404.1,1.80706]
[1642969765447,1.16194661,2405.2,2403.9,3.86731666]
[1642969765646,1.16194661,2405.2,2403.9,0.17831666]
[1642969765647,2.94790859,2405.1,2403.9,0.17831666]
[1642969765843,3.9412196,2405.1,2403.9,0.17831666]
[1642969766049,1.04092,2404.8,2403.9,0.1661]
[1642969766243,0.3059,2404.3,2403.9,0.1661]
[1642969766443,0.1653,2404.2,2403.9,0.1661]
[1642969766646,1.2172,2404.3,2403.9,0.1661]
[1642969766898,1.2172,2404.3,2402.8,3.7799]
[1642969766899,2.94243579,2404.2,2402.8,3.7799]
[1642969767098,3.53943579,2404.2,2402.8,3.7799]
[1642969767299,1.0,2404.1,2402.8,3.72082649]
[1642969767595,0.9214,2403.5,2403.1,2.17898244]
[1642969767797,2.1476,2403.5,2402.4,5.81063047]
[1642969767999,2.1476,2403.5,2402.4,0.06233047]
[1642969768198,2.1476,2403.5,2402.4,0.02436666]
[1642969768400,2.1476,2403.5,2402.3,24.1]
[1642969768603,1.2262,2403.5,2402.3,24.1]
[1642969768799,0.1767,2403.8,2402.3,24.1]
[1642969768999,0.1767,2403.8,2403.0,1.28653076]
[1642969769202,1.17269517,2403.7,2403.4,1.03058379]
[1642969769501,1.0706,2403.7,2403.0,1.28653076]
[1642969769699,1.0706,2403.7,2403.0,1.18653076]
[1642969770656,1.05372551,2403.6,2403.2,0.96815601]
[1642969771462,0.01286427,2403.9,2403.4,1.41999219]
[1642969771672,0.13819997,2404.3,2403.4,1.71999219]
[1642969771863,0.7860193,2405.0,2404.1,1.21440893]
[1642969772067,0.1767,2405.2,2403.6,0.04706871]
[1642969772264,0.1767,2405.2,2403.3,7.5963]
[1642969772265,0.01231111,2404.9,2403.4,0.0021899]
[1642969772463,0.84202932,2404.4,2404.0,0.5914055]
[1642969772664,0.1767,2404.8,2404.0,0.5914055]
[1642969773162,0.1767,2404.8,2404.0,1.92242213]
[1642969773564,0.88849416,2404.7,2404.4,1.09474093]
[1642969774401,0.88849416,2404.7,2404.0,1.33101663]
[1642969774991,1.21758,2405.0,2404.0,1.33101663]
[1642969775195,1.21758,2405.0,2404.4,1.41975272]
[1642969775599,1.21758,2405.0,2403.3,25.90813]
[1642969775797,1.21758,2405.0,2403.4,24.1]
[1642969775997,1.00849236,2404.7,2404.3,1.02842801]
[1642969776196,1.21758,2405.0,2404.3,1.02842801]
[1642969776596,1.21758,2405.0,2404.3,2.53877692]
[1642969776804,0.01258479,2405.3,2404.7,1.16653096]
[1642969777000,3.28509,2405.9,2404.3,1.02842801]
[1642969777001,0.1767,2406.0,2405.1,1.46119561]
[1642969777202,1.05232855,2405.7,2405.2,0.90564492]
[1642969777398,1.05232855,2405.7,2404.4,0.3]
[1642969777599,1.22902855,2405.7,2404.2,1.6]
[1642969777797,1.22902855,2405.7,2404.2,1.3]
[1642969778250,1.22902855,2405.7,2404.4,1.46150535]
[1642969778451,0.1767,2405.7,2405.0,0.94844604]
[1642969778653,1.21722,2405.7,2405.0,0.94844604]
[1642969778957,1.51722,2405.7,2405.0,0.94844604]
[1642969779152,1.04052,2405.7,2405.0,0.94844604]
[1642969779351,0.1767,2405.7,2405.2,1.17755806]
[1642969779552,0.18903768,2406.0,2405.6,1.00771232]
[1642969780153,0.18903768,2406.0,2405.6,2.55756109]
[1642969780154,0.1767,2406.0,2405.6,2.55756109]
[1642969780953,1.18656095,2406.0,2405.6,2.55756109]
[1642969781158,0.1767,2406.0,2405.6,2.55756109]
[1642969782408,1.33247562,2406.0,2405.6,2.55756109]
[1642969782609,0.04,2406.8,2405.6,1.30771232]
[1642969782809,0.04,2406.8,2405.9,0.2427]
[1642969783008,0.04,2406.8,2406.0,0.06872564]
[1642969783210,0.04,2406.8,2406.0,0.89922564]
[1642969783413,0.04,2406.8,2405.3,3.6224]
[1642969783613,0.58685181,2406.7,2405.3,3.6224]
[1642969783812,0.58685181,2406.7,2405.2,3.9522899]
[1642969783813,0.01234081,2406.4,2405.2,3.9522899]
[1642969784015,0.01234081,2406.4,2405.2,3.9501]
[1642969784220,0.01234081,2406.4,2405.2,4.90580551]
[1642969784221,0.09919262,2406.4,2405.2,4.90580551]
[1642969784413,1.03928368,2405.5,2405.2,4.90580551]
[1642969784813,1.03928368,2405.5,2404.7,0.3]
[1642969785013,1.03928368,2405.5,2404.7,1.30076653]
[1642969785647,1.0,2406.2,2404.6,0.6]
[1642969785648,1.0,2406.2,2405.1,1.309999]
[1642969785951,1.5,2406.2,2404.6,0.3]
[1642969786450,1.5,2406.2,2404.4,4.30970928]
[1642969786451,1.58685181,2406.2,2404.5,3.04752555]
[1642969786649,1.5,2406.2,2404.6,1.0]
[1642969786853,1.5,2406.2,2404.6,1.3]
[1642969787048,1.5,2406.2,2405.4,1.04614089]
[1642969787652,0.5,2406.2,2405.4,1.04614089]
[1642969788053,0.5,2406.2,2405.6,1.38732011]
[1642969788354,1.13934663,2406.1,2405.6,1.38732011]
[1642969789428,0.15054078,2406.4,2405.6,1.38732011]
[1642969790614,1.15661938,2406.2,2405.9,0.89226447]
[1642969792221,1.15661938,2406.2,2405.6,1.38732011]
[1642969793024,1.15661938,2406.2,2404.9,9.2247]
[1642969793260,1.05839181,2405.8,2404.8,3.6396]
[1642969793460,1.05839181,2405.8,2404.5,2.32703476]
[1642969793661,2.40159181,2405.8,2404.4,0.0021899]
[1642969793860,2.40159181,2405.8,2404.4,2.32703476]
[1642969793861,2.41452292,2405.8,2404.4,2.32703476]
[1642969794061,3.41452292,2405.8,2404.3,4.8116]
[1642969794263,3.41452292,2405.8,2404.5,0.95301582]
[1642969794264,0.97691117,2404.8,2404.5,0.95301582]
[1642969794461,1.85511117,2404.8,2404.3,4.8116]
[1642969794666,0.8782,2404.8,2404.0,3.6704]
[1642969794862,0.8782,2404.8,2403.8,7.43]
[1642969795064,0.8782,2404.8,2403.9,2.97655236]
[1642969795264,0.8782,2404.8,2404.7,1.43894151]
[1642969795463,0.509,2404.9,2404.7,1.43894151]
[1642969795464,0.2493,2404.9,2404.7,1.43894151]
[1642969795662,0.98393666,2405.2,2404.7,1.43894151]
[1642969796462,1.01293111,2405.8,2404.7,1.43894151]
[1642969796665,1.01293111,2405.8,2404.1,3.7428]
[1642969796666,0.01293111,2405.8,2405.1,1.32390542]
[1642969796909,0.01293111,2405.8,2404.2,3.8127151]
[1642969797499,0.01293111,2405.8,2404.2,4.6208451]
[1642969797700,0.01293111,2405.8,2405.0,0.95391754]
[1642969797903,0.01293111,2405.8,2405.0,2.39414116]
[1642969798500,1.01293111,2405.8,2405.0,2.39414116]
[1642969798703,0.92822765,2405.4,2405.0,2.39414116]
[1642969799102,0.01293111,2405.8,2405.0,2.39414116]
[1642969799600,0.01293111,2405.8,2405.0,0.95391754]
[1642969800657,0.01293111,2405.8,2404.6,1.37707775]
[1642969801057,1.04063,2405.6,2404.6,1.37707775]
[1642969801256,2.79733,2405.6,2404.6,1.37707775]
[1642969801457,2.79733,2405.6,2404.3,1.2082]
[1642969801760,1.11410379,2404.8,2404.3,1.2082]
[1642969801959,1.11410379,2404.8,2404.0,3.7189]
[1642969802255,1.11410379,2404.8,2403.7,1.50813]
[1642969802463,1.11410379,2404.8,2404.1,1.4572886]
[1642969803060,1.11410379,2404.8,2403.4,0.70813]
[1642969803265,1.11410379,2404.8,2403.4,0.20813]
[1642969803465,1.41410379,2404.8,2403.3,6.63325857]
[1642969803664,1.11410379,2404.8,2403.3,6.63325857]
[1642969803966,0.01261557,2405.2,2404.4,0.87266886]
[1642969804268,9.3647,2405.7,2404.4,0.87266886]
[1642969804269,3.8952,2405.7,2404.7,1.37780184]
[1642969804702,6.30279491,2405.9,2404.7,1.37780184]
[1642969805009,1.07506124,2405.2,2404.9,1.04059113]
[1642969805201,1.07506124,2405.2,2404.7,1.37780184]
[1642969805606,1.07506124,2405.2,2404.3,1.0]
[1642969805805,1.07506124,2405.2,2404.1,8.7684]
[1642969806003,0.3,2405.1,2404.1,3.6275]
[1642969806207,1.02184771,2404.6,2404.1,3.6275]
[1642969806502,1.87694771,2404.6,2403.8,0.1663]
[1642969806701,1.87694771,2404.6,2403.8,1.54832405]
[1642969806906,1.87694771,2404.6,2403.8,0.1663]
[1642969807103,2.17694771,2404.6,2403.8,0.1663]
[1642969807507,1.07628956,2404.2,2403.8,1.18082067]
[1642969807703,1.07628956,2404.2,2403.8,0.1663]
[1642969808350,1.07628956,2404.2,2403.8,1.69026533]
[1642969808655,1.3,2405.1,2403.8,1.52396533]
[1642969809048,1.34092,2404.9,2403.8,1.52396533]
[1642969809250,1.34092,2404.9,2404.4,0.07704575]
[1642969809455,1.01237284,2404.8,2404.4,0.1540915]
[1642969810057,2.55537284,2404.8,2404.4,0.1540915]
[1642969810251,1.0,2404.7,2404.4,0.1540915]
[1642969810450,1.3,2404.7,2404.4,0.1540915]
[1642969810852,1.3,2404.7,2404.4,0.09439318]
[1642969811910,1.3,2404.7,2404.4,0.00439318]
[1642969812105,0.3,2404.7,2404.4,0.00439318]
[1642969812301,1.0,2404.7,2404.4,0.00439318]
[1642969812706,2.62458958,2404.8,2404.4,0.00439318]
[1642969812907,8.69116,2404.6,2403.5,0.00218948]
[1642969813102,8.69116,2404.6,2403.3,3.6907]
[1642969813103,5.24069416,2404.5,2403.3,3.6907]
[1642969813505,5.24069416,2404.5,2403.3,5.1795074]
[1642969813707,1.09150913,2403.6,2403.3,3.6907]
[1642969813910,1.09150913,2403.6,2403.1,0.02]
[1642969814108,1.0498,2404.0,2403.1,0.02]
[1642969814911,1.6498,2404.0,2403.1,0.02]
[1642969815109,1.01756176,2403.4,2403.1,1.17927005]
[1642969816547,1.01756176,2403.4,2403.1,0.02]
[1642969817552,2.06986176,2403.4,2403.1,0.02]
[1642969817753,2.36986176,2403.4,2403.1,0.02]
[1642969817958,0.5,2403.3,2403.1,0.01793183]
[1642969818159,4.20406399,2403.7,2403.1,0.01793183]
[1642969818354,5.40365043,2404.1,2403.1,0.01793183]
[1642969818355,0.13819997,2404.1,2403.1,0.01793183]
[1642969818556,0.01209848,2404.4,2404.0,1.52647128]
[1642969818757,0.01209848,2404.4,2403.1,0.01793183]
[1642969818956,1.17282776,2404.2,2403.8,1.05751482]
[1642969819258,14.25452046,2405.0,2403.8,1.05751482]
[1642969819504,11.14942046,2405.0,2403.8,1.05751482]
[1642969819706,5.88397,2405.0,2403.9,1.53879812]
[1642969820110,0.92046714,2404.4,2403.9,1.53879812]
[1642969820707,0.01248745,2404.6,2403.9,1.53879812]
[1642969821909,1.05007801,2404.5,2403.9,1.53879812]
[1642969822710,1.05007801,2404.5,2403.2,3.9884]
[1642969822711,0.3,2404.5,2403.2,3.9884]
[1642969822916,0.3,2404.5,2403.1,0.01793183]
[1642969823154,4.05731133,2404.4,2403.1,0.01793183]
[1642969823357,0.01213431,2404.1,2403.1,0.01793183]
[1642969823754,0.96310734,2403.9,2403.6,2.55412474]
[1642969823954,0.01213431,2404.1,2403.6,2.55412474]
[1642969824154,0.01213431,2404.1,2403.6,1.53938658]
[1642969824555,0.5,2404.4,2403.6,1.53938658]
[1642969824756,0.5,2404.6,2404.0,1.1080288]
[1642969824958,1.04113,2404.7,2404.0,1.1080288]
[1642969825158,3.28259,2405.0,2403.1,0.01793183]
[1642969825159,0.89502779,2404.5,2404.4,1.37290361]
[1642969825362,2.2415,2405.0,2404.4,0.84751725]
[1642969825559,1.17913997,2405.1,2404.4,0.84751725]
[1642969825960,1.47913997,2405.1,2404.4,0.84751725]
[1642969826155,0.3,2405.0,2404.4,0.84751725]
[1642969826355,0.94137509,2404.6,2404.4,0.84751725]
[1642969826554,2.47913997,2405.1,2404.4,0.84751725]
[1642969826763,0.13819996,2405.2,2404.8,1.11387114]
[1642969827009,0.13819996,2405.2,2404.3,3.6092]
[1642969827208,0.13819996,2405.2,2404.2,1.16634507]
[1642969827413,0.01232449,2405.0,2403.9,3.922]
[1642969827611,0.01232449,2405.0,2403.5,5.081]
[1642969827815,0.01205138,2404.4,2403.4,3.7657]
[1642969828019,0.01205138,2404.4,2403.3,1.31730756]
[1642969828216,0.51205138,2404.4,2403.3,1.31730756]
[1642969828421,1.11010676,2403.4,2403.1,0.01793183]
[1642969829618,0.5,2404.1,2403.3,1.37930656]
[1642969830019,0.31205138,2404.4,2403.7,1.11546463]
[1642969830423,0.01205138,2404.4,2403.7,1.11546463]
[1642969830849,0.01205138,2404.4,2403.8,1.15128151]
[1642969830850,0.87888601,2404.2,2403.8,1.15128151]
[1642969831056,0.87888601,2404.2,2403.7,1.11546463]
[1642969832658,2.04111,2404.7,2403.7,1.11546463]
[1642969832857,2.34111,2404.7,2403.7,1.11546463]
[1642969833061,2.64111,2404.7,2403.7,1.11546463]
[1642969833660,0.8776481,2404.0,2403.7,1.11546463]
[1642969833858,0.8776481,2404.0,2403.2,5.0393]
[1642969834157,0.8776481,2404.0,2403.2,3.8135]
[1642969834808,0.60221254,2404.0,2403.4,0.89467575]
[1642969835010,0.60221254,2404.0,2403.4,1.10870798]
[1642969836108,0.84594204,2403.6,2403.4,1.10870798]
[1642969836711,1.04128,2404.2,2403.4,1.10870798]
[1642969836911,1.04126,2404.3,2403.4,1.10870798]
[1642969837312,0.3,2404.2,2403.4,1.10870798]
[1642969837714,0.31274104,2404.2,2403.1,0.01793183]
[1642969837917,2.14087104,2404.2,2403.1,0.01793183]
[1642969838161,0.5,2404.1,2403.1,0.01793183]
[1642969838552,1.10185901,2403.3,2403.1,0.01793183]
[1642969839752,1.5,2404.1,2403.1,0.01793183]
[1642969839952,1.8,2404.1,2403.1,0.01793183]
[1642969840153,0.5,2404.1,2403.4,1.11873854]
[1642969840354,5.24566645,2404.6,2403.8,1.52691199]
[1642969840553,8.63099,2404.7,2403.2,5.0389]
[1642969840554,6.28675645,2404.7,2403.2,5.0389]
[1642969840753,6.28675645,2404.7,2403.7,0.82193445]
[1642969840954,6.28675645,2404.7,2403.2,5.0389]
[1642969841557,5.24566645,2404.6,2403.7,1.09510492]
[1642969841753,6.28675645,2404.7,2403.7,1.09510492]
[1642969841995,1.0,2404.5,2403.7,1.09510492]
[1642969842196,1.04762192,2403.8,2403.7,1.09510492]
[1642969842597,1.04762192,2403.8,2403.2,5.0389]
[1642969842799,1.04762192,2403.8,2403.1,3.75203183]
[1642969842999,1.04762192,2403.8,2403.1,0.01793183]
[1642969843605,0.89880998,2403.2,2403.1,0.01793183]
[1642969843804,1.86240998,2403.2,2403.1,0.01793183]
[1642969844003,0.9636,2403.2,2403.1,0.01793183]
[1642969844805,3.9482,2404.2,2403.7,1.49825642]
[1642969845009,3.3042,2404.3,2403.1,0.01793183]
[1642969845010,0.6,2404.3,2403.1,0.01793183]
[1642969845209,0.6,2404.3,2403.4,1.00019015]
[1642969845210,1.16061102,2403.8,2403.4,1.00019015]
[1642969845408,0.6,2404.3,2403.4,1.00019015]
[1642969845657,0.3,2404.3,2403.4,1.00019015]
[1642969845845,0.6,2404.3,2403.1,3.83453183]
[1642969846045,0.6,2404.3,2403.2,1.46484115]
[1642969846245,5.84566645,2404.3,2403.2,1.46484115]
[1642969846445,5.54566645,2404.3,2403.2,1.46484115]
[1642969846646,0.6,2404.3,2403.1,3.83453183]
[1642969846853,1.01444686,2403.3,2403.1,3.83453183]
[1642969847047,1.01444686,2403.3,2403.1,0.01793183]
[1642969848051,1.01444686,2403.3,2403.1,1.20553394]
[1642969848651,7.8010562,2404.3,2403.1,1.20553394]
[1642969848851,7.8010562,2404.3,2403.5,1.19611294]
[1642969848852,5.2771962,2404.1,2403.5,1.19611294]
[1642969849053,5.2771962,2404.2,2403.5,1.19611294]
[1642969849507,5.2771962,2404.1,2403.1,7.25553183]
[1642969849702,1.03447258,2403.9,2403.6,1.16447377]
[1642969849901,1.03447258,2403.9,2403.1,3.61983183]
[1642969850502,1.03447258,2403.9,2403.6,1.43534392]
[1642969850902,1.03447258,2403.9,2403.4,0.9959138]
[1642969852115,1.03447258,2403.9,2403.5,1.52048068]
[1642969852411,1.03447258,2403.9,2403.1,3.61983183]
[1642969852815,3.17185481,2403.4,2403.1,3.61983183]
[1642969853011,3.17185481,2403.3,2403.2,1.84784782]
[1642969853259,3.17185481,2403.3,2403.2,2.73287205]
[1642969853455,3.17185481,2403.3,2403.2,1.84784782]
[1642969853753,0.9603348,2403.5,2403.2,1.84784782]
[1642969853952,5.28664127,2403.9,2403.5,1.24038316]
[1642969855153,5.28664127,2404.0,2403.5,1.24038316]
[1642969855353,0.96756173,2403.7,2403.5,1.24038316]
[1642969855555,0.96756173,2403.7,2403.5,1.23891949]
[1642969855755,5.28664127,2404.0,2403.5,1.23891949]
[1642969856553,5.28664127,2404.0,2403.1,0.01793183]
[1642969857404,5.28664127,2403.9,2403.1,0.01793183]
[1642969857603,5.28664127,2403.9,2403.8,2.16199275]
[1642969857808,5.28664127,2404.3,2403.8,8.06199275]
[1642969858006,5.28664127,2404.4,2403.8,8.06199275]
[1642969858206,7.04885502,2404.8,2404.3,1.05997929]
[1642969858207,5.28664127,2404.5,2404.3,1.05997929]
[1642969858407,5.28664127,2404.5,2403.9,1.0]
[1642969858408,5.28664127,2404.6,2404.0,3.9867]
[1642969858609,5.28664127,2404.6,2403.9,1.0]
[1642969858808,4.23042106,2404.1,2403.8,0.93718721]
[1642969859009,3.17279499,2403.9,2403.6,4.8693]